fUSD/lending_fUSD_20250404
["ID","MTS","AMOUNT","RATE_DAILY","PERIOD"]
[357123277,1743763843966,-150.35,0.0005199,120]
[357123278,1743763843976,-150.35,0.0005199,120]
[357123279,1743763843986,-150.35,0.0005199,120]
[357123280,1743763843996,-19702.44195657,0.00052,120]
[357123281,1743763844005,-649.45426359,0.00052,30]
[357123282,1743763844018,-24258.3420177,0.00052,120]
[357123283,1743763844035,-42849.46256939,0.00052,120]
[357123284,1743763844046,-148624.38117039,0.00052,120]
[357123287,1743763846248,-571.04514247,0.00051869,120]
[357123288,1743763846258,-571.04514247,0.00051869,120]
[357123289,1743763846270,-571.04514247,0.00051869,120]
[357123290,1743763846280,-571.04514247,0.00051869,120]
[357123291,1743763846289,-571.04514247,0.00051869,120]
[357123292,1743763846299,-571.04514247,0.00051869,120]
[357123293,1743763846308,-571.04514247,0.00051869,120]
[357123294,1743763846318,-571.04514247,0.00051869,120]
[357123295,1743763846327,-571.04514247,0.00051869,120]
[357123296,1743763846336,-571.04514247,0.00051869,120]
[357123297,1743763846346,-571.04514247,0.00051869,120]
[357123298,1743763846355,-571.04514247,0.00051869,120]
[357123299,1743763846364,-571.04514247,0.00051869,120]
[357123300,1743763846373,-571.04514247,0.00051869,120]
[357123301,1743763846382,-571.04514247,0.00051869,120]
[357123302,1743763846392,-571.04514247,0.00051869,120]
[357123303,1743763846401,-571.04514247,0.00051869,120]
[357123304,1743763846410,-571.04514247,0.00051869,120]
[357123305,1743763846420,-571.04514247,0.00051869,120]
[357123306,1743763846429,-44887.5437534,0.00052,120]
[357123307,1743763846441,-1655.69538,0.00052,120]
[357123308,1743763846452,-596.39161688,0.00052,120]
[357123309,1743763846464,-276.150012,0.00052,120]
[357123310,1743763846508,-4879.57129148,0.00052,120]
[357123316,1743763851288,325.32419687,0.000477,2]
[357123334,1743764844112,-151.28,0.00026849,2]
[357123335,1743764844134,-151.28,0.00032646,2]
[357123336,1743764844154,-102.53102997,0.00038443,2]
[357123337,1743764850094,-48.74897003,0.00038443,2]
[357123338,1743764850119,-154.53,0.000436,36]
[357123339,1743764850139,-151.28,0.00044239,2]
[357123340,1743764850158,-1000.0,0.00045,120]
[357123341,1743764850183,-154.53,0.000474,42]
[357123342,1743764850206,-154.53,0.000474,42]
[357123343,1743764850226,-527.12,0.00048718,2]
[357123344,1743764850246,-1000.0,0.000499,2]
[357123345,1743764850266,-151.28,0.00050036,2]
[357123346,1743764850286,-154.73,0.00050333,2]
[357123347,1743764850307,-150.0,0.00050361,7]
[357123348,1743764850327,-23900.0,0.00050482,2]
[357123349,1743764850346,-250.0,0.00050636,120]
[357123350,1743764850366,-150.0,0.00050811,120]
[357123351,1743764850385,-500.0,0.00050951,60]
[357123352,1743764850405,-527.12,0.00050982,2]
[357123353,1743764850424,-13669.23383133,0.00051,120]
[357123354,1743764850444,-2000.0,0.00051,2]
[357123355,1743764850469,-154.53,0.000511,48]
[357123356,1743764850493,-154.53,0.000511,48]
[357123357,1743764850513,-500.0,0.00051112,60]
[357123358,1743764850532,-357.48,0.00051234,2]
[357123359,1743764850553,-476.42,0.00051314,2]
[357123360,1743764850574,-285.28,0.000514,2]
[357123361,1743764850594,-496.9965,0.0005148,2]
[357123362,1743764850615,-500.0,0.00051499,120]
[357123363,1743764850635,-500.0,0.00051499,120]
[357123364,1743764850655,-500.0,0.00051499,120]
[357123365,1743764850676,-500.0,0.00051499,120]
[357123366,1743764850696,-500.0,0.00051499,120]
[357123367,1743764850716,-500.0,0.00051499,120]
[357123368,1743764850736,-500.0,0.00051499,120]
[357123369,1743764850756,-500.0,0.00051499,120]
[357123370,1743764850776,-376.39696202,0.00051499,120]
[357123371,1743764850796,-500.0,0.00051499,120]
[357123372,1743764850820,-500.0,0.00051499,120]
[357123373,1743764850840,-500.0,0.00051499,120]
[357123374,1743764850859,-500.0,0.00051499,120]
[357123375,1743764850880,-500.0,0.00051499,120]
[357123376,1743764850900,-500.0,0.00051499,120]
[357123377,1743764850920,-500.0,0.00051499,120]
[357123378,1743764850939,-500.0,0.00051499,120]
[357123379,1743764850959,-500.0,0.00051499,120]
[357123380,1743764850978,-500.0,0.00051499,120]
[357123381,1743764851184,-550.0,0.00051499,120]
[357123382,1743764851214,-500.0,0.00051499,120]
[357123383,1743764851234,-500.0,0.00051499,120]
[357123384,1743764851254,-500.0,0.00051499,120]
[357123385,1743764851273,-500.0,0.00051499,120]
[357123386,1743764851294,-500.0,0.00051499,120]
[357123387,1743764851315,-500.0,0.00051499,120]
[357123388,1743764851337,-11737.97178182,0.000515,120]
[357123398,1743765032352,-397.01,0.00051044,2]
[357123399,1743765032362,-162.29,0.00051206,120]
[357123400,1743765032372,-43456.51371554,0.000515,120]
[357123423,1743765040441,-302.70427001,0.000515,120]
[357123459,1743765043942,-13134.15715663,0.000515,120]
[357123464,1743765046783,-836.52235182,0.000514,120]
[357123465,1743765046792,-7133.77854259,0.000515,120]
[357123466,1743765046814,-4120.1,0.000515,120]
[357123467,1743765046831,-1175.64989641,0.000515,120]
[357123469,1743765046840,-500.0,0.00051789,120]
[357123470,1743765046850,-500.0,0.00051789,120]
[357123471,1743765046859,-500.0,0.00051789,120]
[357123472,1743765046869,-500.0,0.00051789,120]
[357123473,1743765046878,-500.0,0.00051789,120]
[357123474,1743765046887,-500.0,0.00051789,120]
[357123475,1743765046899,-500.0,0.00051789,120]
[357123476,1743765046908,-500.0,0.00051789,120]
[357123477,1743765046918,-500.0,0.00051789,120]
[357123479,1743765046928,-500.0,0.00051789,120]
[357123480,1743765046937,-500.0,0.00051789,120]
[357123481,1743765046947,-498.47787341,0.00051789,120]
[357123482,1743765046958,-500.0,0.00051789,120]
[357123483,1743765046968,-868.6413,0.0005179,2]
[357123484,1743765046978,-58246.7888,0.0005179,2]
[357123485,1743765046987,-458.836,0.000518,94]
[357123486,1743765046996,-177.246,0.000518,94]
[357123487,1743765047006,-459.3977,0.000518,120]
[357123488,1743765047016,-501.58752862,0.00051813,80]
[357123489,1743765047025,-169.54865262,0.00051813,28]
[357123490,1743765047034,-473.88557688,0.00051813,15]
[357123491,1743765047043,-1120.82013694,0.00051834,23]
[357123492,1743765047052,-186.43356087,0.00051834,46]
[357123493,1743765047061,-151.0,0.00051869,2]
[357123494,1743765047071,-12368.09973422,0.0005188,4]
[357123495,1743765047083,-1135.74939372,0.0005188,4]
[357123496,1743765047098,-1649.2707788,0.0005188,4]
[357123497,1743765047124,-826.00000001,0.0005188,4]
[357123498,1743765047135,-1178.92663,0.0005188,4]
[357123504,1743765923491,-152865.83001616,0.0002,2]
[357123505,1743765954958,10000.0,6.94e-05,2]
[357123506,1743765954979,10000.0,6.94e-05,2]
[357123507,1743765954999,8570.66897308,6.94e-05,2]
[357123508,1743765962479,1429.33102692,8e-05,2]
[357123509,1743765962498,8745.22729318,8e-05,2]
[357123510,1743765966828,1254.77270682,8e-05,2]
[357123511,1743765966855,3257.99113025,8e-05,2]
[357123512,1743766041121,-250.0,0.00027,2]
[357123513,1743766041142,-300.0,0.00029,2]
[357123514,1743766041162,-150.0,0.00043,120]
[357123515,1743766041190,-154.57,0.000436,36]
[357123516,1743766041210,-157.0,0.00047,120]
[357123517,1743766041239,-154.57,0.000474,42]
[357123518,1743766041266,-154.57,0.000474,42]
[357123519,1743766041288,-69.90916937,0.00049077,85]
[357123520,1743766051089,-297.15983063,0.00049077,85]
[357123521,1743766051111,-474.4,0.00049077,2]
[357123522,1743766051133,-199.10460551,0.00049452,120]
[357123523,1743766075156,6742.00886975,0.0001,2]
[357123524,1743766075177,9167.72030317,0.0001,2]
[357123525,1743766085139,832.27969683,9.5e-05,2]
[357123526,1743766085162,149.96500858,9.5e-05,2]
[357123527,1743766092552,-21000.0,0.00015,2]
[357123528,1743766105808,377.2311452,7.888e-05,2]
[357123529,1743766106458,-151.0,0.00015,2]
[357123530,1743766111147,6417.44595355,9.828e-05,2]
[357123531,1743766125187,-5000.0,0.00015,2]
[357123537,1743766146214,-14975.30228781,0.00015,2]
[357123538,1743766146235,-499.999999,0.000151,2]
[357123539,1743766146256,-2369.52485735,0.00033,2]
[357123540,1743766146278,-5773.8280671,0.0004,30]
[357123547,1743766192475,150.0,0.00049262,2]
[357123568,1743766231571,-3.83539449,0.00049452,120]
[357123569,1743766231581,-162.29,0.00049461,120]
[357123570,1743766231591,-168.36,0.0004961,2]
[357123571,1743766231599,-67.56213371,0.00049873,2]
[357123575,1743766231919,-209.99121713,0.00049873,2]
[357123577,1743766231930,-277.55335083,0.00049889,2]
[357123579,1743766231939,-2345.7182,0.000499,2]
[357123580,1743766231951,-1046.09879458,0.00049964,22]
[357123582,1743766231961,-513.43924878,0.00049964,15]
[357123584,1743766231971,-46340.09425478,0.0004999,4]
[357123601,1743766237394,-293.08154299,0.0004999,4]
[357123602,1743766237410,-604.11033298,0.0004999,4]
[357123603,1743766237467,-822.55173,0.0004999,4]
[357123604,1743766237583,-26642.4633038,0.0004999,4]
[357123764,1743766239642,-2158.07216115,0.0004999,4]
[357123775,1743766239892,-5283.16800028,0.0004999,4]
[357124096,1743766243415,-359.84014774,0.00049989,120]
[357124130,1743766245591,-140.15985226,0.00049989,120]
[357124131,1743766245602,-247.10039306,0.00049989,120]
[357124132,1743766245614,-1434.38360868,0.0004999,4]
[357124133,1743766245715,-23662.80270834,0.0004999,4]
[357124134,1743766245728,-150.35,0.0004999,120]
[357124135,1743766245739,-500.0,0.00049998,120]
[357124136,1743766245752,-500.0,0.00049998,120]
[357124137,1743766245763,-500.0,0.00049998,120]
[357124138,1743766245773,-500.0,0.00049998,120]
[357124139,1743766245783,-500.0,0.00049998,120]
[357124140,1743766245794,-500.0,0.00049998,120]
[357124141,1743766245805,-500.0,0.00049998,120]
[357124142,1743766245815,-500.0,0.00049998,120]
[357124143,1743766245826,-500.0,0.00049998,120]
[357124144,1743766245835,-500.0,0.00049998,120]
[357124145,1743766245845,-500.0,0.00049998,120]
[357124146,1743766245856,-500.0,0.00049998,120]
[357124147,1743766245866,-548.93451139,0.00049998,120]
[357124148,1743766245876,-500.0,0.00049998,120]
[357124149,1743766245886,-500.0,0.00049999,120]
[357124150,1743766245896,-562.88295226,0.00049999,120]
[357124151,1743766245906,-500.0,0.00049999,120]
[357124152,1743766245916,-500.0,0.00049999,120]
[357124153,1743766245926,-592.05806778,0.00049999,120]
[357124154,1743766245936,-500.0,0.00049999,120]
[357124155,1743766245946,-500.0,0.00049999,120]
[357124156,1743766245961,-500.0,0.00049999,120]
[357124157,1743766245972,-211.97176065,0.00049999,120]
[357124158,1743766245999,-288.02823935,0.00049999,120]
[357124159,1743766246011,-500.0,0.00049999,120]
[357124160,1743766246023,-105.83318517,0.00049999,120]
[357124161,1743766246037,-394.16681483,0.00049999,120]
[357124162,1743766246047,-110.10818641,0.00049999,120]
[357124163,1743766246070,-391.87907106,0.00049999,120]
[357124164,1743766246081,-426.82092894,0.00049999,120]
[357124171,1743766346948,151.0,0.00045,120]
[357124183,1743766867607,3055.35789267,7.945e-05,2]
[357124184,1743766867630,913.80858433,7.945e-05,2]
[357124213,1743767234141,-322.8169895,0.00026849,2]
[357124214,1743767234163,-154.83,0.00026849,2]
[357124215,1743767234184,-154.83,0.00032646,2]
[357124216,1743767234204,-500.0,0.0003287,5]
[357124217,1743767234225,-150.0,0.00034548,10]
[357124218,1743767234245,-154.83,0.00038443,2]
[357124219,1743767234264,-154.85,0.00039284,2]
[357124220,1743767234286,-500.0,0.00039616,2]
[357124221,1743767234306,-84.44033598,0.00043212,12]
[357124222,1743767235143,-265.55966402,0.00043212,12]
[357124223,1743767235164,-250.0,0.00043212,2]
[357124224,1743767235190,-154.59,0.000436,36]
[357124225,1743767235210,-154.83,0.00044239,2]
[357124226,1743767235230,-3792.98997728,0.00044239,30]
[357124227,1743767241118,-1962.98988471,0.00044239,30]
[357124228,1743767248255,-3313.36013801,0.00044239,30]
[357124229,1743767248277,-2000.0,0.000455,2]
[357124230,1743767248300,-134.97707675,0.0004682,2]
[357124231,1743767249077,-50.36257078,0.0004682,2]
[357124232,1743767249099,-1673.23026026,0.0004692,120]
[357124233,1743767249120,-490.57,0.0004702,2]
[357124234,1743767249150,-154.59,0.000474,42]
[357124235,1743767249173,-143.94164653,0.000474,42]
[357124236,1743767254114,-10.64835347,0.000474,42]
[357124237,1743767254140,-500.0,0.0004751,120]
[357124238,1743767254166,-160.0,0.000479,120]
[357124239,1743767254192,-150.0,0.00047948,2]
[357124240,1743767254218,-255.42438925,0.00047989,120]
[357124241,1743767278867,500.0,0.0003,30]
[357124245,1743767345084,-250.0,0.00027,2]
[357124246,1743767345106,-300.0,0.00029,2]
[357124247,1743767345130,-479.983505,0.00047749,2]
[357124248,1743767345152,-244.57561075,0.00047989,120]
[357124249,1743767345174,-500.0,0.00048,120]
[357124250,1743767345195,-163.52,0.00048043,120]
[357124251,1743767345216,-2000.0,0.000482,2]
[357124252,1743767345237,-154.73,0.00048273,2]
[357124253,1743767345260,-198.67,0.00048277,120]
[357124254,1743767345281,-1000.0,0.00048332,2]
[357124255,1743767345300,-150.0,0.00048336,7]
[357124256,1743767345320,-229.3769964,0.00048501,2]
[357124257,1743767345341,-500.0,0.0004851,120]
[357124258,1743767345360,-250.0,0.00048583,120]
[357124260,1743767349253,-500.0,0.00048651,120]
[357124261,1743767349274,-150.0,0.00048743,2]
[357124262,1743767349296,-382.661,0.00048787,84]
[357124263,1743767349316,-150.0,0.00048787,4]
[357124264,1743767349337,-500.0,0.00048787,120]
[357124265,1743767349360,-261.67637433,0.00048787,120]
[357124266,1743767349385,-500.0,0.00048787,120]
[357124267,1743767349407,-500.0,0.00048787,120]
[357124268,1743767349429,-500.0,0.00048787,120]
[357124272,1743767349578,-500.0,0.00048787,120]
[357124273,1743767349599,-500.0,0.00048787,120]
[357124274,1743767349620,-623.69921985,0.00048787,120]
[357124275,1743767349645,-23900.0,0.00048788,2]
[357124276,1743767349681,-500.0,0.000489,120]
[357124277,1743767349711,-500.0,0.00048951,120]
[357124278,1743767349737,-500.0,0.00049,120]
[357124279,1743767349761,-325.0,0.00049,120]
[357124280,1743767349786,-349.22,0.00049088,2]
[357124281,1743767349814,-445.38,0.00049104,2]
[357124282,1743767349841,-300.0,0.00049254,120]
[357124283,1743767349868,-490.57,0.00049284,2]
[357124284,1743767349899,-543.777,0.000493,120]
[357124285,1743767349922,-543.778,0.000493,120]
[357124286,1743767349944,-543.777,0.000493,120]
[357124287,1743767349965,-543.778,0.000493,120]
[357124288,1743767349987,-543.777,0.000493,120]
[357124289,1743767350012,-330.64150822,0.00049315,120]
[357124292,1743767380435,185.33964752,0.000494,2]
[357124293,1743767395957,1338.5842082,0.000494,120]
[357124302,1743767431656,-300.0,0.00049499,5]
[357124303,1743767431667,-404.072,0.000495,2]
[357124304,1743767431711,-864.10549473,0.000495,2]
[357124305,1743767431816,-466.1727275,0.000495,2]
[357124306,1743767431869,-3307.6835265,0.000495,2]
[357124307,1743767431925,-7564.22823636,0.000495,2]
[357124308,1743767431934,-2863.0,0.000495,120]
[357124309,1743767431944,-191.85217095,0.0004979,25]
[357124310,1743767431955,-1893.9511,0.0004979,2]
[357124311,1743767431964,-2193.6474,0.000498,2]
[357124312,1743767431974,-1000.0,0.00049879,2]
[357124314,1743767431984,-984.35526638,0.0004988,15]
[357124315,1743767431993,-1222.50474262,0.00049888,22]
[357124316,1743767432003,-152.29444621,0.0004989,26]
[357124317,1743767432012,-501.0,0.0004989,5]
[357124318,1743767432022,-9454.20566362,0.0004989,2]
[357124319,1743767432034,-456.31895767,0.0004989,2]
[357124595,1743767434940,782.33320572,0.000422,2]
[357124603,1743767437719,-402.63324665,0.00049889,120]
[357124604,1743767437729,-11879.63696118,0.0004989,2]
[357124605,1743767437827,-477.93531753,0.0004989,2]
[357124606,1743767437837,-2394.94912454,0.0004989,2]
[357124607,1743767437855,-299.155446,0.0004989,2]
[357124608,1743767437868,-554.90474855,0.0004989,2]
[357124609,1743767437893,5057.0,0.000461,5]
[357124619,1743767440134,-1513.10773808,0.0004989,2]
[357124620,1743767440147,-818.9,0.0004989,2]
[357124634,1743767442648,-1029.78936327,0.0004989,2]
[357124655,1743767443236,-1.52234113,0.0004989,2]
[357124666,1743767445651,-2947.044,0.0004989,2]
[357124667,1743767445681,-218.10998709,0.0004989,2]
[357124668,1743767445841,-381.91315134,0.0004989,2]
[357124669,1743767445853,-447.27512388,0.00049899,120]
[357124670,1743767445973,-52.72487612,0.00049899,120]
[357124671,1743767445983,-169.04182591,0.00049899,120]
[357124672,1743767445993,-203.70436914,0.00049899,120]
[357124673,1743767446003,-500.0,0.00049899,120]
[357124674,1743767446012,-500.0,0.00049899,120]
[357124675,1743767446021,-500.0,0.00049899,120]
[357124676,1743767446031,-434.25415797,0.00049899,120]
[357124677,1743767446040,-500.0,0.00049899,120]
[357124678,1743767446049,-500.0,0.00049899,120]
[357124679,1743767446058,-500.0,0.00049899,120]
[357124680,1743767446067,-500.0,0.00049899,120]
[357124681,1743767446076,-500.0,0.00049899,120]
[357124682,1743767446085,-500.0,0.00049899,120]
[357124683,1743767446094,-500.0,0.00049899,120]
[357124684,1743767446103,-450.0,0.00049899,120]
[357124685,1743767446111,-721.0723,0.000499,2]
[357124686,1743767446121,-13470.8764,0.000499,120]
[357124687,1743767446131,-59682.94287816,0.000499,120]
[357124688,1743767446140,-156.5,0.000499,120]
[357124689,1743767446148,-477.21054471,0.000499,28]
[357124690,1743767446157,-549.23153483,0.00049973,10]
[357124691,1743767446166,-505.19568927,0.00049973,2]
[357124692,1743767446175,-299.92140712,0.00049978,2]
[357124693,1743767446184,-150.66486415,0.00049978,2]
[357124694,1743767446194,-500.0,0.00049978,2]
[357124695,1743767446202,-500.0,0.00049978,2]
[357124696,1743767446211,-500.0,0.00049978,120]
[357124697,1743767446222,-500.7400191,0.00049978,2]
[357124698,1743767446232,-500.0,0.00049978,2]
[357124700,1743767446241,-509.97340418,0.00049978,120]
[357124702,1743767446251,-565.06419734,0.00049978,120]
[357124704,1743767446259,-265.84737932,0.00049978,61]
[357124705,1743767446268,-50806.82441507,0.00049978,61]
[357124706,1743767446279,-17420.10372663,0.00049978,61]
[357124707,1743767446288,-15765.13819327,0.00049979,4]
[357124708,1743767446303,-575.61049026,0.00049979,4]
[357124709,1743767469604,1511.0,0.000444,2]
[357124710,1743767470948,1511.85382735,0.000471,2]
[357124711,1743767474318,459.22,0.00047074,2]
[357124712,1743767474535,459.22,0.00049338,2]
[357124713,1743767505524,7622.73,0.00048989,2]
[357124714,1743767536390,1000.0,0.00047945,120]
[357124724,1743767925381,153.99,0.00013699,2]
[357124728,1743768433151,-203.37291683,0.00026848,2]
[357124729,1743768433172,-115735.51631478,0.00026849,5]
[357124730,1743768442123,-20898.61998507,0.00026849,5]
[357124731,1743768442145,-151.28,0.00026849,2]
[357124732,1743768442166,-151.28,0.00034716,2]
[357124733,1743768442186,-1051.65547094,0.00039,2]
[357124734,1743768442206,-738.18930068,0.0004,120]
[357124735,1743768442227,-1200.0,0.000405,120]
[357124736,1743768442247,-1500.0,0.00041,120]
[357124737,1743768442268,-156.75433994,0.00042483,2]
[357124738,1743768442292,-151.28,0.00042583,2]
[357124739,1743768442312,-1000.0,0.00044,2]
[357124740,1743768442333,-449.23161735,0.0004702,5]
[357124741,1743768452099,-1089.76838265,0.0004702,5]
[357124742,1743768452124,-250.0,0.00047425,120]
[357124743,1743768452275,-892.99,0.00047573,2]
[357124744,1743768452299,-1000.0,0.00047769,2]
[357124745,1743768452320,-1101.95467083,0.000478,120]
[357124746,1743768452340,-177.05869883,0.000479,120]
[357124747,1743768452360,-150.0,0.00047945,120]
[357124748,1743768452380,-163.52,0.0004798,120]
[357124749,1743768452400,-307.35463277,0.00048403,2]
[357124750,1743768452422,-500.0,0.00048403,2]
[357124751,1743768452441,-245.54852993,0.00048403,2]
[357124752,1743768452461,-1043.65,0.00048429,2]
[357124753,1743768452480,-168.05,0.0004858,2]
[357124754,1743768452500,-167.32,0.00048598,2]
[357124755,1743768452519,-200.0,0.00048598,2]
[357124756,1743768452541,-1013.5029938,0.00048782,15]
[357124757,1743768452561,-150.05,0.00048791,2]
[357124758,1743768452582,-993.25582569,0.00048801,15]
[357124759,1743768452602,-150.05,0.00048821,2]
[357124760,1743768452621,-188.08,0.00048851,2]
[357124761,1743768452642,-150.05,0.00048852,2]
[357124762,1743768452661,-150.0,0.00048852,4]
[357124763,1743768452681,-45347.34607019,0.0004886,120]
[357124764,1743768548142,-1600.0,0.00045,120]
[357124765,1743768548167,-172.56421991,0.00048,120]
[357124766,1743768548187,-150.0,0.00048284,2]
[357124767,1743768548342,-15025.10560195,0.0004886,120]
[357124768,1743768561098,-8004.605308,0.0004886,120]
[357124769,1743768566172,-57996.99681041,0.0004886,120]
[357124770,1743768569094,-4414.700864,0.0004886,120]
[357124773,1743768611407,844.25,0.00048568,2]
[357124779,1743768631889,-2215.2549,0.0004886,120]
[357124780,1743768632097,-350.0,0.0004886,120]
[357124781,1743768632151,-15404.99044545,0.0004886,120]
[357124782,1743768632161,-150.05,0.00048882,2]
[357124783,1743768632173,-25128.82738975,0.000489,15]
[357124784,1743768632185,-279.37,0.00048901,2]
[357124785,1743768632195,-150.05,0.00048913,2]
[357124786,1743768632205,-200.0,0.00048926,2]
[357124788,1743768632216,-406.309,0.00048931,85]
[357124790,1743768632227,-150.0,0.00048931,7]
[357124792,1743768632237,-23900.0,0.00048931,2]
[357124794,1743768632247,-150.05,0.00048943,2]
[357124796,1743768632257,-1101.95467083,0.0004895,120]
[357124798,1743768632267,-371.15,0.00048963,2]
[357124800,1743768632277,-150.05,0.00048974,2]
[357124802,1743768632287,-200.0,0.00048983,31]
[357124804,1743768632296,-832.73,0.00049,120]
[357124806,1743768632306,-962.36328325,0.00049,60]
[357125079,1743768638019,-427.63671675,0.00049,60]
[357125081,1743768638028,-150.05,0.00049004,2]
[357125083,1743768638038,-150.05,0.00049035,2]
[357125085,1743768638047,-1013.50299371,0.00049117,15]
[357125087,1743768638057,-993.25582566,0.00049134,15]
[357125089,1743768638067,-150.0,0.00049183,120]
[357125091,1743768638077,-165.31454299,0.00049315,120]
[357125106,1743768638331,-400.4601441,0.00049315,120]
[357125107,1743768638341,-500.0,0.00049315,120]
[357125108,1743768638351,-500.0,0.00049315,120]
[357125109,1743768638362,-500.0,0.00049315,120]
[357125110,1743768638371,-500.0,0.00049315,120]
[357125111,1743768638380,-500.0,0.00049315,120]
[357125112,1743768638390,-2327.75,0.00049315,120]
[357125113,1743768638399,-562.80074769,0.00049315,120]
[357125114,1743768638409,-500.0,0.00049315,120]
[357125115,1743768638420,-500.0,0.00049315,120]
[357125116,1743768638430,-2405.86,0.00049315,120]
[357125117,1743768638439,-611.34098416,0.00049315,120]
[357125118,1743768638449,-500.0,0.00049315,120]
[357125119,1743768638459,-500.0,0.00049315,120]
[357125120,1743768638468,-858.57,0.00049315,120]
[357125121,1743768638478,-371.06692678,0.00049315,120]
[357125138,1743768640115,-174.65571966,0.00049315,120]
[357125139,1743768640125,-256.45093514,0.00049315,120]
[357125169,1743768643539,-243.54906486,0.00049315,120]
[357125171,1743768643548,-500.0,0.00049315,120]
[357125173,1743768643558,-500.0,0.00049315,120]
[357125175,1743768643568,-500.0,0.00049315,120]
[357125176,1743768643578,-1075.65,0.00049315,120]
[357125178,1743768643587,-500.0,0.00049315,120]
[357125180,1743768643596,-609.92,0.00049315,120]
[357125181,1743768643606,-35.55555955,0.00049315,120]
[357125201,1743768645817,-464.44444045,0.00049315,120]
[357125202,1743768645828,-603.67339643,0.00049315,120]
[357125203,1743768645837,-500.0,0.00049315,120]
[357125204,1743768645848,-500.0,0.00049315,120]
[357125205,1743768645857,-384.76658554,0.00049315,120]
[357125206,1743768645866,-349.4971685,0.00049315,120]
[357125214,1743768646479,-150.5028315,0.00049315,120]
[357125215,1743768646489,-500.0,0.00049315,120]
[357125216,1743768646499,-500.0,0.00049315,120]
[357125217,1743768646517,-500.0,0.00049315,120]
[357125218,1743768646527,-937.22,0.00049315,120]
[357125219,1743768646537,-500.0,0.00049315,2]
[357125220,1743768646546,-500.0,0.00049315,120]
[357125221,1743768646556,-605.082694,0.00049315,120]
[357125222,1743768646565,-534.0,0.00049315,120]
[357125223,1743768646575,-178.343282,0.00049315,120]
[357125224,1743768646584,-500.0,0.00049315,120]
[357125225,1743768646594,-500.0,0.00049315,120]
[357125226,1743768646603,-272.57894907,0.00049315,120]
[357125250,1743769520219,1217.75396529,9e-05,2]
[357125251,1743769528593,225.29784073,0.00011,2]
[357125252,1743769537369,11375.85501702,8e-05,2]
[357125253,1743769555138,-1065.32744694,0.0001995,2]
[357125254,1743769555594,2608.93060217,6.94e-05,2]
[357125255,1743769567166,1766.93443003,8e-05,2]
[357125257,1743769649090,-300.71963242,0.0001995,2]
[357125258,1743769682318,-7389.49549213,0.0001995,2]
[357125269,1743769745123,-1003.17646235,0.00019999,2]
[357125270,1743769745147,-272666.45323888,0.0002,2]
[357125271,1743769745167,-920.99864036,0.000239,2]
[357125272,1743769745188,-1493.0,0.00024,5]
[357125273,1743769745208,-250.0,0.00027,2]
[357125274,1743769745228,-300.0,0.00029,2]
[357125275,1743769745248,-9174.87868756,0.0003,5]
[357125276,1743769745269,-692.2601068,0.000372,103]
[357125277,1743769745291,-692.26010676,0.000372,103]
[357125278,1743769745312,-692.26010676,0.000372,103]
[357125279,1743769745332,-373.0,0.000425,120]
[357125280,1743769745353,-1800.0,0.000435,120]
[357125281,1743769745375,-692.26010676,0.00044275,120]
[357125282,1743769750121,-452.12,0.00046924,2]
[357125283,1743769750142,-1000.0,0.000474,2]
[357125284,1743769750167,-3151.6974699,0.000475,120]